[Event "*** Titled Tuesday 3|2 Blitz"]
[Site "Chess.com"]
[Date "2015.09.01"]
[Round "1"]
[White "Chakraborty-ARZ"]
[Black "SidArun"]
[Result "0-1"]
[WhiteElo "2254"]
[BlackElo "1875"]
[TimeControl "180+2"]
[EndTime "11:07:07 PDT"]
[Termination "SidArun won by resignation"]

1. d4 {[%clk 0:02:28.3]} 1... Nf6 {[%clk 0:03:00.3]} 2. c4 {[%clk 0:02:28.9]}
2... c5 {[%clk 0:03:01.5]} 3. d5 {[%clk 0:02:29.8]} 3... e6 {[%clk 0:03:02.6]}
4. Nc3 {[%clk 0:02:30.3]} 4... exd5 {[%clk 0:03:03.4]} 5. cxd5 {[%clk
0:02:32.2]} 5... d6 {[%clk 0:03:04.7]} 6. Nf3 {[%clk 0:02:32.9]} 6... g6 {[%clk
0:03:05.7]} 7. Bf4 {[%clk 0:02:34.4]} 7... Bg7 {[%clk 0:03:06.8]} 8. Qa4+ {[%clk
0:02:35.4]} 8... Bd7 {[%clk 0:02:56.5]} 9. Qb3 {[%clk 0:02:36.1]} 9... Qc7
{[%clk 0:02:57.4]} 10. h3 {[%clk 0:02:37.3]} 10... O-O {[%clk 0:02:55.4]} 11. e3
{[%clk 0:02:38.3]} 11... Na6 {[%clk 0:02:52]} 12. Nd2 {[%clk 0:02:38.9]} 12...
Nh5 {[%clk 0:02:41.5]} 13. Bh2 {[%clk 0:02:38.4]} 13... f5 {[%clk 0:02:42.3]}
14. Be2 {[%clk 0:02:36]} 14... Nf6 {[%clk 0:02:40.5]} 15. Nc4 {[%clk 0:02:32.3]}
15... Ne8 {[%clk 0:02:40.6]} 16. O-O {[%clk 0:02:30.1]} 16... Rb8 {[%clk
0:02:41.5]} 17. Nb5 {[%clk 0:02:29.5]} 17... Bxb5 {[%clk 0:02:36.3]} 18. Qxb5
{[%clk 0:02:31.4]} 18... Nb4 {[%clk 0:02:32.5]} 19. Qa4 {[%clk 0:02:13.2]} 19...
b5 {[%clk 0:02:31.6]} 20. Qb3 {[%clk 0:02:10.8]} 20... bxc4 {[%clk 0:02:32.4]}
21. Qxc4 {[%clk 0:02:12.7]} 21... Qb7 {[%clk 0:02:12.5]} 22. a3 {[%clk
0:02:09.2]} 22... Na6 {[%clk 0:02:13.6]} 23. Qxa6 {[%clk 0:02:09.1]} 23... Qxa6
{[%clk 0:02:14.2]} 24. Bxa6 {[%clk 0:02:11]} 24... Rxb2 {[%clk 0:02:15.4]} 25.
Rab1 {[%clk 0:02:05.9]} 25... Ra2 {[%clk 0:01:47.4]} 26. Rb3 {[%clk 0:02:04.3]}
26... Nc7 {[%clk 0:01:47.2]} 27. Bc4 {[%clk 0:02:03.2]} 27... Rd8 {[%clk
0:01:46.3]} 28. Rfb1 {[%clk 0:01:51.9]} 28... Rd2 {[%clk 0:01:46.6]} 29. Rd3
{[%clk 0:01:46.9]} 29... Rxd3 {[%clk 0:01:30.7]} 30. Bxd3 {[%clk 0:01:48.8]}
30... Be5 {[%clk 0:01:22.3]} 31. Rb7 {[%clk 0:01:46.1]} 31... Bxh2+ {[%clk
0:01:16.8]} 32. Kxh2 {[%clk 0:01:48]} 32... Rd7 {[%clk 0:01:18.2]} 33. Rxa7
{[%clk 0:01:45.5]} 33... Kf7 {[%clk 0:01:19]} 34. a4 {[%clk 0:01:42.9]} 34...
Ke7 {[%clk 0:01:20]} 35. Bc4 {[%clk 0:01:40]} 35... Kd8 {[%clk 0:01:16.4]} 36.
Kg3 {[%clk 0:01:38.7]} 36... Kc8 {[%clk 0:01:17.6]} 37. Bb5 {[%clk 0:01:11.4]}
37... Nxb5 {[%clk 0:01:17.2]} 38. Rxd7 {[%clk 0:01:12.1]} 38... Kxd7 {[%clk
0:01:18.4]} 39. axb5 {[%clk 0:01:13.7]} 39... Kc7 {[%clk 0:01:20.1]} 40. Kf4
{[%clk 0:01:13.4]} 40... Kb6 {[%clk 0:01:21.4]} 41. Kg5 {[%clk 0:01:04]} 41...
Kxb5 {[%clk 0:01:22.4]} 42. Kf6 {[%clk 0:01:05.9]} 42... c4 {[%clk 0:01:23.7]}
43. Ke7 {[%clk 0:01:07.1]} 43... c3 {[%clk 0:01:25.1]} 44. Kxd6 {[%clk
0:01:08.2]} 44... c2 {[%clk 0:01:26.8]} 45. Ke7 {[%clk 0:01:08.3]} 45... c1=Q
{[%clk 0:01:24.1]} 46. d6 {[%clk 0:01:10.2]} 46... Qc5 {[%clk 0:01:23.9]} 47.
Ke6 {[%clk 0:01:11.4]} 47... Kc6 {[%clk 0:01:23.7]} 48. d7 {[%clk 0:01:09.2]}
48... Qd6+ {[%clk 0:01:23.8]} 0-1

[Event "*** Titled Tuesday 3|2 Blitz"]
[Site "Chess.com"]
[Date "2015.09.01"]
[Round "1"]
[White "nightmaresknight"]
[Black "Dale"]
[Result "1-0"]
[WhiteElo "2321"]
[BlackElo "1943"]
[TimeControl "180+2"]
[EndTime "11:07:11 PDT"]
[Termination "nightmaresknight won by checkmate"]

1. e4 {[%clk 0:03:01.4]} 1... Nf6 {[%clk 0:03:01]} 2. e5 {[%clk 0:02:55.5]} 2...
Nd5 {[%clk 0:03:00.4]} 3. d4 {[%clk 0:02:55]} 3... d6 {[%clk 0:03:01.1]} 4. Nf3
{[%clk 0:02:55.2]} 4... g6 {[%clk 0:03:01.3]} 5. Bc4 {[%clk 0:02:49.3]} 5... Nb6
{[%clk 0:03:01.3]} 6. Bb3 {[%clk 0:02:50.5]} 6... a5 {[%clk 0:03:01.7]} 7. a4
{[%clk 0:02:50.4]} 7... Bg7 {[%clk 0:03:02.3]} 8. Qe2 {[%clk 0:02:43.6]} 8...
O-O {[%clk 0:03:02]} 9. h3 {[%clk 0:02:43.5]} 9... Nc6 {[%clk 0:03:02.3]} 10.
O-O {[%clk 0:02:39.6]} 10... Be6 {[%clk 0:02:58.9]} 11. Bxe6 {[%clk 0:02:23.8]}
11... fxe6 {[%clk 0:02:59.1]} 12. Nc3 {[%clk 0:02:14.5]} 12... Rxf3 {[%clk
0:02:57.7]} 13. Qxf3 {[%clk 0:02:13.1]} 13... Nxd4 {[%clk 0:02:57.9]} 14. Qg4
{[%clk 0:02:05.7]} 14... Bxe5 {[%clk 0:02:53.2]} 15. Bf4 {[%clk 0:01:45.2]}
15... Bg7 {[%clk 0:02:40.4]} 16. Qd1 {[%clk 0:01:38]} 16... e5 {[%clk
0:02:38.4]} 17. Be3 {[%clk 0:01:37.5]} 17... d5 {[%clk 0:02:34.7]} 18. f4 {[%clk
0:01:27.6]} 18... Nc4 {[%clk 0:02:30.4]} 19. Bf2 {[%clk 0:01:19.4]} 19... c5
{[%clk 0:02:17.9]} 20. b3 {[%clk 0:01:12.3]} 20... Nb6 {[%clk 0:02:11.1]} 21.
fxe5 {[%clk 0:01:12]} 21... Bxe5 {[%clk 0:02:10]} 22. Re1 {[%clk 0:01:12.4]}
22... Bf6 {[%clk 0:02:09.4]} 23. Rc1 {[%clk 0:01:05.3]} 23... e5 {[%clk
0:02:08.5]} 24. Nb5 {[%clk 0:01:05.9]} 24... Qd7 {[%clk 0:02:02.3]} 25. Nxd4
{[%clk 0:00:46.8]} 25... cxd4 {[%clk 0:01:59.2]} 26. c3 {[%clk 0:00:47.3]} 26...
dxc3 {[%clk 0:01:54.8]} 27. Bxb6 {[%clk 0:00:46.2]} 27... d4 {[%clk 0:01:48.4]}
28. Rxc3 {[%clk 0:00:38.1]} 28... Qd5 {[%clk 0:01:38.9]} 29. Rf3 {[%clk
0:00:36.2]} 29... Bg7 {[%clk 0:01:37.4]} 30. Qd3 {[%clk 0:00:34.6]} 30... Rc8
{[%clk 0:01:35.2]} 31. Qe4 {[%clk 0:00:29.6]} 31... Qxe4 {[%clk 0:01:27.6]} 32.
Rxe4 {[%clk 0:00:30.5]} 32... Rc1+ {[%clk 0:01:26.9]} 33. Kh2 {[%clk 0:00:31.2]}
33... h5 {[%clk 0:01:23.3]} 34. Bxa5 {[%clk 0:00:31.5]} 34... h4 {[%clk
0:01:23.9]} 35. Bd8 {[%clk 0:00:31.6]} 35... g5 {[%clk 0:01:22.2]} 36. Bxg5
{[%clk 0:00:32.1]} 36... Kh7 {[%clk 0:01:22.6]} 37. Rxh4+ {[%clk 0:00:32.5]}
37... Kg6 {[%clk 0:01:22.5]} 38. Bxc1 {[%clk 0:00:33.3]} 38... e4 {[%clk
0:01:22.5]} 39. Rxe4 {[%clk 0:00:33.7]} 39... b5 {[%clk 0:01:23.5]} 40. Rg4+
{[%clk 0:00:34.1]} 40... Kh5 {[%clk 0:01:23.9]} 41. Rf5# {[%clk 0:00:34.4]} 1-0

[Event "*** Titled Tuesday 3|2 Blitz"]
[Site "Chess.com"]
[Date "2015.09.01"]
[Round "1"]
[White "ChadaevNikolay"]
[Black "IMRosen"]
[Result "1-0"]
[WhiteElo "2617"]
[BlackElo "2218"]
[TimeControl "180+2"]
[EndTime "11:07:18 PDT"]
[Termination "ChadaevNikolay won by checkmate"]

1. Nf3 {[%clk 0:02:34]} 1... d5 {[%clk 0:02:57.2]} 2. g3 {[%clk 0:02:35.3]} 2...
Nf6 {[%clk 0:02:58.2]} 3. d3 {[%clk 0:02:36.5]} 3... b5 {[%clk 0:02:54.4]} 4.
Bg2 {[%clk 0:02:37.9]} 4... Bb7 {[%clk 0:02:49.2]} 5. O-O {[%clk 0:02:39.8]}
5... e6 {[%clk 0:02:48.4]} 6. Nbd2 {[%clk 0:02:41.3]} 6... Be7 {[%clk 0:02:43]}
7. e4 {[%clk 0:02:42.8]} 7... O-O {[%clk 0:02:39.4]} 8. e5 {[%clk 0:02:43.5]}
8... Nfd7 {[%clk 0:02:40.1]} 9. Re1 {[%clk 0:02:44.5]} 9... c5 {[%clk
0:02:40.8]} 10. Nf1 {[%clk 0:02:46.1]} 10... Nc6 {[%clk 0:02:42.1]} 11. h4
{[%clk 0:02:47.1]} 11... Qb6 {[%clk 0:02:42.6]} 12. N1h2 {[%clk 0:02:47.8]}
12... Rae8 {[%clk 0:02:39]} 13. Bf4 {[%clk 0:02:48.5]} 13... f5 {[%clk
0:02:36.1]} 14. Ng5 {[%clk 0:02:47.4]} 14... Nd8 {[%clk 0:02:33.4]} 15. Qe2
{[%clk 0:02:45.2]} 15... h6 {[%clk 0:02:32.7]} 16. Ngf3 {[%clk 0:02:45.8]} 16...
Nf7 {[%clk 0:02:30.7]} 17. h5 {[%clk 0:02:43.1]} 17... a5 {[%clk 0:02:28.4]} 18.
Kh1 {[%clk 0:02:43]} 18... b4 {[%clk 0:02:29.1]} 19. Rg1 {[%clk 0:02:41.8]}
19... Kh8 {[%clk 0:02:28.9]} 20. g4 {[%clk 0:02:36.9]} 20... fxg4 {[%clk
0:02:26.3]} 21. Nxg4 {[%clk 0:02:38]} 21... Qd8 {[%clk 0:02:15.9]} 22. Qd2
{[%clk 0:02:37.6]} 22... Rg8 {[%clk 0:01:56.2]} 23. d4 {[%clk 0:02:30.3]} 23...
Nf8 {[%clk 0:01:53.1]} 24. c3 {[%clk 0:02:29.2]} 24... Nh7 {[%clk 0:01:49.1]}
25. Bf1 {[%clk 0:02:23.3]} 25... Ref8 {[%clk 0:01:44.7]} 26. Bd3 {[%clk
0:02:23.8]} 26... Nhg5 {[%clk 0:01:44]} 27. Nh4 {[%clk 0:02:22.8]} 27... Ne4
{[%clk 0:01:35.5]} 28. Ng6+ {[%clk 0:02:23.3]} 28... Kh7 {[%clk 0:01:35.2]} 29.
Nxf8+ {[%clk 0:02:18.1]} 29... Rxf8 {[%clk 0:01:35.1]} 30. f3 {[%clk 0:02:19.1]}
30... Kh8 {[%clk 0:01:28.8]} 31. fxe4 {[%clk 0:02:18.3]} 31... dxe4 {[%clk
0:01:30.7]} 32. Qg2 {[%clk 0:01:48.2]} 32... Qd7 {[%clk 0:01:23.3]} 33. Bxe4
{[%clk 0:01:43.8]} 33... Bxe4 {[%clk 0:01:19.6]} 34. Qxe4 {[%clk 0:01:44.7]}
34... Bg5 {[%clk 0:01:19.4]} 35. Raf1 {[%clk 0:01:44.4]} 35... Rc8 {[%clk
0:01:10.4]} 36. dxc5 {[%clk 0:01:39.8]} 36... Rxc5 {[%clk 0:01:03.6]} 37. Rd1
{[%clk 0:01:40.8]} 37... Qc7 {[%clk 0:01:03.8]} 38. Bxg5 {[%clk 0:01:17.6]}
38... Nxg5 {[%clk 0:00:57.1]} 39. Qa8+ {[%clk 0:01:18.3]} 39... Kh7 {[%clk
0:00:47.3]} 40. Rd8 {[%clk 0:01:16.5]} 40... Nf7 {[%clk 0:00:45.4]} 41. Rh8+
{[%clk 0:01:14.7]} 41... Nxh8 {[%clk 0:00:44.8]} 42. Nf6+ {[%clk 0:01:15.4]}
42... gxf6 {[%clk 0:00:44.4]} 43. Qg8# {[%clk 0:01:16.8]} 1-0

[Event "*** Titled Tuesday 3|2 Blitz"]
[Site "Chess.com"]
[Date "2015.09.01"]
[Round "1"]
[White "Penguininja"]
[Black "BakaPG"]
[Result "1-0"]
[WhiteElo "2140"]
[BlackElo "2446"]
[TimeControl "180+2"]
[EndTime "11:07:34 PDT"]
[Termination "Penguininja won by resignation"]

1. d4 {[%clk 0:02:55.6]} 1... c5 {[%clk 0:02:58.1]} 2. Nf3 {[%clk 0:02:55.8]}
2... cxd4 {[%clk 0:02:57.2]} 3. Nxd4 {[%clk 0:02:57.7]} 3... d5 {[%clk
0:02:56.6]} 4. Nb3 {[%clk 0:02:51.7]} 4... Nc6 {[%clk 0:02:54.9]} 5. e3 {[%clk
0:02:50.5]} 5... Nf6 {[%clk 0:02:53.6]} 6. c4 {[%clk 0:02:51.3]} 6... e6 {[%clk
0:02:54.2]} 7. Nc3 {[%clk 0:02:51.3]} 7... Be7 {[%clk 0:02:53.8]} 8. Be2 {[%clk
0:02:51.9]} 8... O-O {[%clk 0:02:54]} 9. O-O {[%clk 0:02:53.4]} 9... b6 {[%clk
0:02:54.2]} 10. cxd5 {[%clk 0:02:54]} 10... exd5 {[%clk 0:02:52.9]} 11. Nb5
{[%clk 0:02:53.1]} 11... Be6 {[%clk 0:02:50.2]} 12. N5d4 {[%clk 0:02:53.9]}
12... Nxd4 {[%clk 0:02:46.4]} 13. Nxd4 {[%clk 0:02:55.8]} 13... Rc8 {[%clk
0:02:44.9]} 14. b3 {[%clk 0:02:51.3]} 14... Ne4 {[%clk 0:02:43.7]} 15. Bb2
{[%clk 0:02:52.3]} 15... Bf6 {[%clk 0:02:44.2]} 16. Rc1 {[%clk 0:02:52.5]} 16...
Qe7 {[%clk 0:02:42.3]} 17. Ba6 {[%clk 0:02:40.6]} 17... Rxc1 {[%clk 0:02:37.1]}
18. Qxc1 {[%clk 0:02:42.5]} 18... Nc5 {[%clk 0:02:36.4]} 19. Be2 {[%clk
0:02:38.7]} 19... Rc8 {[%clk 0:02:36.3]} 20. Nxe6 {[%clk 0:02:29]} 20... Qxe6
{[%clk 0:02:36.4]} 21. Bxf6 {[%clk 0:02:23.7]} 21... gxf6 {[%clk 0:02:34.3]} 22.
Qb2 {[%clk 0:02:20.4]} 22... Qe5 {[%clk 0:02:30.9]} 23. Qa3 {[%clk 0:02:15.8]}
23... d4 {[%clk 0:02:29.4]} 24. exd4 {[%clk 0:02:15.9]} 24... Qxd4 {[%clk
0:02:28.8]} 25. Bc4 {[%clk 0:02:17.5]} 25... a5 {[%clk 0:02:26.3]} 26. Qc1
{[%clk 0:02:09.8]} 26... Kg7 {[%clk 0:02:04.4]} 27. Rd1 {[%clk 0:02:00.6]} 27...
Qe5 {[%clk 0:01:55.7]} 28. Rd5 {[%clk 0:01:41.5]} 28... Qe7 {[%clk 0:01:53.6]}
29. Rh5 {[%clk 0:01:38.9]} 29... Kh8 {[%clk 0:01:46.5]} 30. Qh6 {[%clk
0:01:26.4]} 30... Qe1+ {[%clk 0:01:18.7]} 31. Bf1 {[%clk 0:01:26.2]} 31... Kg8
{[%clk 0:01:19.7]} 32. Qxh7+ {[%clk 0:01:05.1]} 32... Kf8 {[%clk 0:01:19]} 33.
Qh8+ {[%clk 0:01:06.4]} 33... Ke7 {[%clk 0:01:19.8]} 34. Qxc8 {[%clk 0:01:07.3]}
34... Ne4 {[%clk 0:01:16.8]} 35. Qc7+ {[%clk 0:01:05.2]} 35... Kf8 {[%clk
0:01:17.4]} 36. Rf5 {[%clk 0:00:50.6]} 36... Kg7 {[%clk 0:01:10.8]} 37. Qf4
{[%clk 0:00:43.9]} 37... Nd2 {[%clk 0:01:10.5]} 38. Qg4+ {[%clk 0:00:43.2]}
38... Kf8 {[%clk 0:01:10.5]} 39. Qe2 {[%clk 0:00:41.6]} 39... Qc1 {[%clk
0:01:09.1]} 40. Rd5 {[%clk 0:00:40]} 40... Nb1 {[%clk 0:01:05.8]} 41. Rd8+
{[%clk 0:00:36]} 1-0

[Event "*** Titled Tuesday 3|2 Blitz"]
[Site "Chess.com"]
[Date "2015.09.01"]
[Round "1"]
[White "zmaj23"]
[Black "PauloCesarCosta"]
[Result "1-0"]
[WhiteElo "2388"]
[BlackElo "2023"]
[TimeControl "180+2"]
[EndTime "11:07:37 PDT"]
[Termination "zmaj23 won on time"]

1. e4 {[%clk 0:03:01.4]} 1... e6 {[%clk 0:02:55.6]} 2. d4 {[%clk 0:02:49.5]}
2... d5 {[%clk 0:02:56]} 3. Nc3 {[%clk 0:02:48.9]} 3... Nf6 {[%clk 0:02:56.2]}
4. Bg5 {[%clk 0:02:49.1]} 4... Be7 {[%clk 0:02:55.7]} 5. e5 {[%clk 0:02:50.2]}
5... Nfd7 {[%clk 0:02:56.7]} 6. h4 {[%clk 0:02:50.9]} 6... Bxg5 {[%clk
0:02:50.3]} 7. hxg5 {[%clk 0:02:49.1]} 7... Qxg5 {[%clk 0:02:51.1]} 8. Nh3
{[%clk 0:02:49.8]} 8... Qe7 {[%clk 0:02:51.9]} 9. Nf4 {[%clk 0:02:50.7]} 9...
Nb6 {[%clk 0:02:51.3]} 10. Nh5 {[%clk 0:02:48.8]} 10... f5 {[%clk 0:02:03.6]}
11. exf6 {[%clk 0:02:43.1]} 11... gxf6 {[%clk 0:02:04.4]} 12. Nf4 {[%clk
0:02:43.9]} 12... Rg8 {[%clk 0:00:45.4]} 13. Qh5+ {[%clk 0:02:42.5]} 13... Qf7
{[%clk 0:00:43.4]} 14. Qxf7+ {[%clk 0:02:42.1]} 14... Kxf7 {[%clk 0:00:43.6]}
15. Rxh7+ {[%clk 0:02:44]} 15... Rg7 {[%clk 0:00:40.7]} 16. Rxg7+ {[%clk
0:02:40.7]} 16... Kxg7 {[%clk 0:00:41]} 17. Bd3 {[%clk 0:02:42.3]} 17... Bd7
{[%clk 0:00:34.6]} 18. O-O-O {[%clk 0:02:37.3]} 18... Na6 {[%clk 0:00:27.4]} 19.
Rh1 {[%clk 0:02:36.2]} 19... Rh8 {[%clk 0:00:26.3]} 20. Rxh8 {[%clk 0:02:32.9]}
20... Kxh8 {[%clk 0:00:27.3]} 21. Bxa6 {[%clk 0:02:34.8]} 21... bxa6 {[%clk
0:00:27.2]} 22. Nh5 {[%clk 0:02:30.8]} 22... f5 {[%clk 0:00:18]} 23. Nf6 {[%clk
0:02:26.7]} 23... Bc8 {[%clk 0:00:17.3]} 24. Ne8 {[%clk 0:02:25.7]} 24... Na8
{[%clk 0:00:04.8]} 25. b3 {[%clk 0:02:23.3]} 25... Kg8 {[%clk 0:00:05.8]} 26.
Nf6+ {[%clk 0:02:14.3]} 26... Kf7 {[%clk 0:00:06.3]} 27. Nh5 {[%clk 0:02:15.2]}
27... Nb6 {[%clk 0:00:07.1]} 28. a4 {[%clk 0:02:14.5]} 28... Bd7 {[%clk
0:00:07.9]} 29. a5 {[%clk 0:02:13.7]} 29... Nc8 {[%clk 0:00:08.5]} 30. Nf4
{[%clk 0:02:11.9]} 30... Nd6 {[%clk 0:00:09]} 31. Nd3 {[%clk 0:02:10]} 31... Ne4
{[%clk 0:00:09.6]} 32. Nxe4 {[%clk 0:02:08.7]} 32... fxe4 {[%clk 0:00:10.3]} 33.
Ne5+ {[%clk 0:02:09.9]} 33... Ke7 {[%clk 0:00:10.2]} 34. Nxd7 {[%clk 0:02:11.8]}
34... Kxd7 {[%clk 0:00:11.4]} 35. Kd2 {[%clk 0:02:11.4]} 35... e5 {[%clk
0:00:11.4]} 36. Ke3 {[%clk 0:02:12.1]} 36... exd4+ {[%clk 0:00:11.8]} 37. Kxd4
{[%clk 0:02:12.4]} 37... Ke6 {[%clk 0:00:13]} 38. g4 {[%clk 0:02:11.6]} 38...
Kd6 {[%clk 0:00:13.3]} 39. b4 {[%clk 0:02:12.1]} 39... Ke6 {[%clk 0:00:13.4]}
40. Kc5 {[%clk 0:02:12.5]} 40... Ke5 {[%clk 0:00:12.4]} 41. c3 {[%clk
0:02:13.8]} 41... c6 {[%clk 0:00:12.6]} 42. Kxc6 {[%clk 0:02:13.3]} 42... Kf4
{[%clk 0:00:12.8]} 43. Kxd5 {[%clk 0:02:13.2]} 43... Kxg4 {[%clk 0:00:14.5]} 44.
Kxe4 {[%clk 0:02:14.1]} 44... Kg5 {[%clk 0:00:11.5]} 45. Ke5 {[%clk 0:02:14]}
45... Kg4 {[%clk 0:00:11.9]} 46. f4 {[%clk 0:02:14.6]} 1-0

[Event "*** Titled Tuesday 3|2 Blitz"]
[Site "Chess.com"]
[Date "2015.09.01"]
[Round "1"]
[White "Thomaslegend"]
[Black "DanielNaroditsky"]
[Result "0-1"]
[WhiteElo "2135"]
[BlackElo "2490"]
[TimeControl "180+2"]
[EndTime "11:07:43 PDT"]
[Termination "DanielNaroditsky won by resignation"]

1. d4 {[%clk 0:03:01.7]} 1... Nf6 {[%clk 0:02:58.5]} 2. c4 {[%clk 0:03:02.7]}
2... e6 {[%clk 0:02:55.2]} 3. Nc3 {[%clk 0:03:01.6]} 3... Bb4 {[%clk 0:02:55.4]}
4. f3 {[%clk 0:03:02.5]} 4... c5 {[%clk 0:02:53.9]} 5. d5 {[%clk 0:03:02.5]}
5... O-O {[%clk 0:02:54.9]} 6. e4 {[%clk 0:03:02.7]} 6... d6 {[%clk 0:02:56.1]}
7. Ne2 {[%clk 0:03:01.5]} 7... b5 {[%clk 0:02:56.9]} 8. Nf4 {[%clk 0:02:50.4]}
8... e5 {[%clk 0:02:57.1]} 9. Ne2 {[%clk 0:02:46.8]} 9... a6 {[%clk 0:02:52.3]}
10. Ng3 {[%clk 0:02:39.1]} 10... Nbd7 {[%clk 0:02:48.8]} 11. Bd3 {[%clk
0:02:37.3]} 11... bxc4 {[%clk 0:02:49]} 12. Bxc4 {[%clk 0:02:38]} 12... Nb6
{[%clk 0:02:48.8]} 13. Be2 {[%clk 0:02:27.6]} 13... a5 {[%clk 0:02:33.8]} 14.
O-O {[%clk 0:02:24.5]} 14... Bxc3 {[%clk 0:02:33.1]} 15. bxc3 {[%clk 0:02:24.8]}
15... Ba6 {[%clk 0:02:34.6]} 16. Bxa6 {[%clk 0:02:08.8]} 16... Rxa6 {[%clk
0:02:34.6]} 17. Qe2 {[%clk 0:02:09.7]} 17... Ra8 {[%clk 0:02:27.5]} 18. Bg5
{[%clk 0:01:36.1]} 18... h6 {[%clk 0:02:27.8]} 19. Be3 {[%clk 0:01:36.3]} 19...
Na4 {[%clk 0:02:17.9]} 20. Qc2 {[%clk 0:01:13.6]} 20... Qd7 {[%clk 0:02:15]} 21.
Rfb1 {[%clk 0:01:08.1]} 21... Rab8 {[%clk 0:02:15.2]} 22. Nf5 {[%clk 0:01:00.1]}
22... Nb6 {[%clk 0:02:01.2]} 23. c4 {[%clk 0:00:37.7]} 23... Ne8 {[%clk
0:02:02.1]} 24. Rb2 {[%clk 0:00:33.2]} 24... Rb7 {[%clk 0:01:33.3]} 25. Rab1
{[%clk 0:00:34.3]} 25... Qd8 {[%clk 0:01:34.7]} 26. Rb5 {[%clk 0:00:15.4]} 26...
a4 {[%clk 0:01:35.2]} 27. Bc1 {[%clk 0:00:10.2]} 27... Kh7 {[%clk 0:01:24.4]}
28. Ne3 {[%clk 0:00:11.4]} 28... Nf6 {[%clk 0:01:17.2]} 29. Qb2 {[%clk
0:00:12.5]} 29... Nfd7 {[%clk 0:01:16.9]} 30. Bd2 {[%clk 0:00:11.2]} 30... Qa8
{[%clk 0:01:15]} 31. a3 {[%clk 0:00:10.2]} 31... g6 {[%clk 0:01:04.1]} 32. Ba5
{[%clk 0:00:10]} 32... Rfb8 {[%clk 0:01:04.6]} 33. Bd2 {[%clk 0:00:09.5]} 33...
Nxc4 {[%clk 0:01:02.1]} 34. Nxc4 {[%clk 0:00:04]} 34... Rxb5 {[%clk 0:01:02.7]}
35. Qxb5 {[%clk 0:00:05.9]} 35... Rxb5 {[%clk 0:01:03.5]} 36. Rxb5 {[%clk
0:00:07.8]} 36... Qa6 {[%clk 0:01:04.3]} 0-1

[Event "*** Titled Tuesday 3|2 Blitz"]
[Site "Chess.com"]
[Date "2015.09.01"]
[Round "1"]
[White "MMSANCHEZ"]
[Black "Schoenbrunn"]
[Result "1-0"]
[WhiteElo "2282"]
[BlackElo "1829"]
[TimeControl "180+2"]
[EndTime "11:07:48 PDT"]
[Termination "MMSANCHEZ won by checkmate"]

1. d4 {[%clk 0:03:01.9]} 1... d5 {[%clk 0:02:55.4]} 2. Nf3 {[%clk 0:03:02.9]}
2... Nf6 {[%clk 0:02:55.2]} 3. e3 {[%clk 0:03:04.2]} 3... g6 {[%clk 0:02:53.7]}
4. Nbd2 {[%clk 0:03:00.3]} 4... Bg7 {[%clk 0:02:53.3]} 5. b4 {[%clk 0:03:01.7]}
5... O-O {[%clk 0:02:49]} 6. c4 {[%clk 0:03:01.6]} 6... a5 {[%clk 0:02:33.3]} 7.
b5 {[%clk 0:03:02.5]} 7... c5 {[%clk 0:02:32.1]} 8. a4 {[%clk 0:03:01.2]} 8...
b6 {[%clk 0:02:25.6]} 9. Qb3 {[%clk 0:02:59.5]} 9... Bb7 {[%clk 0:02:22.2]} 10.
Bb2 {[%clk 0:03:00.7]} 10... Nbd7 {[%clk 0:02:21.8]} 11. Be2 {[%clk 0:03:00.4]}
11... Rc8 {[%clk 0:02:19.5]} 12. O-O {[%clk 0:03:01.1]} 12... Ne4 {[%clk
0:02:12.1]} 13. Rfd1 {[%clk 0:02:58.4]} 13... cxd4 {[%clk 0:02:10]} 14. exd4
{[%clk 0:02:58.1]} 14... Nxd2 {[%clk 0:02:06.6]} 15. Nxd2 {[%clk 0:02:51.5]}
15... dxc4 {[%clk 0:02:01.4]} 16. Bxc4 {[%clk 0:02:51.1]} 16... Nf6 {[%clk
0:02:01.8]} 17. Rac1 {[%clk 0:02:49.7]} 17... Nd5 {[%clk 0:01:51.9]} 18. Re1
{[%clk 0:02:34.9]} 18... Nf4 {[%clk 0:01:47.9]} 19. Nf3 {[%clk 0:02:28.1]} 19...
e6 {[%clk 0:01:35.6]} 20. Qe3 {[%clk 0:02:16.7]} 20... Nd5 {[%clk 0:01:34.3]}
21. Qd2 {[%clk 0:02:14.2]} 21... Qd6 {[%clk 0:01:32.3]} 22. Ne5 {[%clk
0:02:14.2]} 22... Rfd8 {[%clk 0:01:25.8]} 23. g3 {[%clk 0:01:56.3]} 23... Nb4
{[%clk 0:01:25.6]} 24. f4 {[%clk 0:01:51.9]} 24... Rxc4 {[%clk 0:01:20.8]} 25.
Nxc4 {[%clk 0:01:19.4]} 25... Qd5 {[%clk 0:01:22]} 26. Re3 {[%clk 0:00:39.1]}
26... Qh1+ {[%clk 0:00:46.1]} 27. Kf2 {[%clk 0:00:39.8]} 27... Qxh2+ {[%clk
0:00:46.6]} 28. Ke1 {[%clk 0:00:40.6]} 28... Qg1+ {[%clk 0:00:42.5]} 29. Ke2
{[%clk 0:00:41.6]} 29... Nd5 {[%clk 0:00:30.6]} 30. Rxg1 {[%clk 0:00:38.8]}
30... e5 {[%clk 0:00:28.3]} 31. Nxe5 {[%clk 0:00:38.1]} 31... Nb4 {[%clk
0:00:28]} 32. f5 {[%clk 0:00:34.8]} 32... gxf5 {[%clk 0:00:28.2]} 33. Rf1 {[%clk
0:00:35.5]} 33... Rd5 {[%clk 0:00:29.2]} 34. Rxf5 {[%clk 0:00:36.4]} 34... f6
{[%clk 0:00:29.9]} 35. Ref3 {[%clk 0:00:32.8]} 35... fxe5 {[%clk 0:00:30.5]} 36.
Qg5 {[%clk 0:00:32.6]} 36... Rd7 {[%clk 0:00:27.2]} 37. Rf8# {[%clk 0:00:33.3]}
1-0